[Event "Titled Tuesday Blitz August 22 Early 2023"]
[White "Tomaszewski, Kacper"]
[Black "Hulka, Valentyn"]
[WhiteFideId "1127373"]
[BlackFideId "34107061"]
[WhiteElo "2428"]
[BlackElo "2721"]
[Result "0-1"]
[Round "1"]
[TimeControl "180+1"]
[Date "2023.08.22"]
[WhiteClock "0:00:02"]
[BlackClock "0:00:55"]
[Board "91"]

1. e4 {[%clk 0:03:00]}  c5 {[%clk 0:02:57]} 2. Nf3 {[%clk 0:03:00]}  d6 {[%clk 0:02:57]} 3. Bb5+ {[%clk 0:02:58]}  Nd7 {[%clk 0:02:57]} 4. O-O {[%clk 0:02:55]}  a6 {[%clk 0:02:57]} 5. Bd3 {[%clk 0:02:54]}  Ngf6 {[%clk 0:02:57]} 6. c3 {[%clk 0:02:53]}  e6 {[%clk 0:02:55]} 7. Re1 {[%clk 0:02:51]}  b5 {[%clk 0:02:55]} 8. a4 {[%clk 0:02:51]}  c4 {[%clk 0:02:54]} 9. Bc2 {[%clk 0:02:51]}  Bb7 {[%clk 0:02:55]} 10. Na3 {[%clk 0:02:49]}  Qb6 {[%clk 0:02:51]} 11. d4 {[%clk 0:02:45]}  cxd3 {[%clk 0:02:34]} 12. Bxd3 {[%clk 0:02:44]}  Nc5 {[%clk 0:02:34]} 13. a5 {[%clk 0:02:43]}  Qc7 {[%clk 0:02:32]} 14. Bc2 {[%clk 0:02:41]}  Ncxe4 {[%clk 0:02:29]} 15. Nd4 {[%clk 0:02:33]}  Be7 {[%clk 0:02:26]} 16. f3 {[%clk 0:02:19]}  Nc5 {[%clk 0:02:23]} 17. b4 {[%clk 0:02:01]}  Ncd7 {[%clk 0:02:22]} 18. c4 {[%clk 0:02:01]}  bxc4 {[%clk 0:02:17]} 19. b5 {[%clk 0:01:56]}  d5 {[%clk 0:02:10]} 20. b6 {[%clk 0:01:51]}  Qc8 {[%clk 0:02:07]} 21. f4 {[%clk 0:01:40]}  O-O {[%clk 0:02:06]} 22. Qf3 {[%clk 0:01:25]}  Bc5 {[%clk 0:02:00]} 23. Be3 {[%clk 0:01:25]}  e5 {[%clk 0:01:59]} 24. fxe5 {[%clk 0:01:20]}  Nxe5 {[%clk 0:01:58]} 25. Qg3 {[%clk 0:01:14]}  Neg4 {[%clk 0:01:45]} 26. Bf5 {[%clk 0:01:14]}  Qb8 {[%clk 0:01:46]} 27. Bf4 {[%clk 0:00:44]}  Bxd4+ {[%clk 0:01:45]} 28. Kf1 {[%clk 0:00:43]}  Nh5 {[%clk 0:01:35]} 29. Bxb8 {[%clk 0:00:38]}  Nxg3+ {[%clk 0:01:35]} 30. Bxg3 {[%clk 0:00:38]}  Ne3+ {[%clk 0:01:24]} 31. Rxe3 {[%clk 0:00:37]}  Bxe3 {[%clk 0:01:25]} 32. Re1 {[%clk 0:00:30]}  Rfe8 {[%clk 0:01:20]} 33. Nc2 {[%clk 0:00:29]}  Bc5 {[%clk 0:01:15]} 34. Rd1 {[%clk 0:00:26]}  d4 {[%clk 0:01:08]} 35. Nxd4 {[%clk 0:00:25]}  Rad8 {[%clk 0:01:09]} 36. Bf2 {[%clk 0:00:22]}  Re5 {[%clk 0:01:05]} 37. Bg4 {[%clk 0:00:04]}  Bxd4 {[%clk 0:00:58]} 38. Rxd4 {[%clk 0:00:04]}  Rxd4 {[%clk 0:00:56]} 39. Bxd4 {[%clk 0:00:04]}  Rxa5 {[%clk 0:00:57]} 40. Bf3 {[%clk 0:00:02]}  Bxf3 {[%clk 0:00:54]} 41. gxf3 {[%clk 0:00:03]}  Rb5 {[%clk 0:00:54]} 42. Ke2 {[%clk 0:00:04]}  a5 {[%clk 0:00:54]} 43. Kd2 {[%clk 0:00:04]}  Rb3 {[%clk 0:00:53]} 44. Kc2 {[%clk 0:00:03]}  a4 {[%clk 0:00:54]} 45. Bc5 {[%clk 0:00:02]}  f6 {[%clk 0:00:52]} 46. f4 {[%clk 0:00:02]}  Kf7 {[%clk 0:00:53]} 47. f5 {[%clk 0:00:02]}  g6 {[%clk 0:00:53]} 48. fxg6+ {[%clk 0:00:02]}  hxg6 {[%clk 0:00:54]} 49. h4 {[%clk 0:00:03]}  f5 {[%clk 0:00:55]} 50. Bd4 {[%clk 0:00:03]}  Ke6 {[%clk 0:00:55]} 51. Bc5 {[%clk 0:00:02]}  Kd5 {[%clk 0:00:55]} 0-1


[Site "https://www.chess.com"]

[Event "Titled Tuesday Blitz August 22 Early 2023"]
[White "Timmermans, Mark"]
[Black "Goldin, Roman"]
[WhiteFideId "1026399"]
[BlackFideId "2803860"]
[WhiteElo "2715"]
[BlackElo "2424"]
[Result "1-0"]
[Round "1"]
[TimeControl "180+1"]
[Date "2023.08.22"]
[WhiteClock "0:00:33"]
[BlackClock "0:00:00"]
[Board "94"]

1. e4 {[%clk 0:02:58]}  Nc6 {[%clk 0:02:59]} 2. Nf3 {[%clk 0:02:57]}  e5 {[%clk 0:02:58]} 3. d4 {[%clk 0:02:57]}  exd4 {[%clk 0:02:58]} 4. c3 {[%clk 0:02:55]}  d3 {[%clk 0:02:57]} 5. Bxd3 {[%clk 0:02:55]}  Nge7 {[%clk 0:02:53]} 6. c4 {[%clk 0:02:44]}  Ng6 {[%clk 0:02:53]} 7. Nc3 {[%clk 0:02:40]}  d6 {[%clk 0:02:50]} 8. O-O {[%clk 0:02:40]}  Be7 {[%clk 0:02:50]} 9. Nd5 {[%clk 0:02:35]}  O-O {[%clk 0:02:50]} 10. Be3 {[%clk 0:02:34]}  Nce5 {[%clk 0:02:49]} 11. Nxe5 {[%clk 0:02:34]}  dxe5 {[%clk 0:02:43]} 12. b4 {[%clk 0:02:23]}  c6 {[%clk 0:02:43]} 13. Nxe7+ {[%clk 0:02:23]}  Nxe7 {[%clk 0:02:31]} 14. a4 {[%clk 0:02:23]}  Qc7 {[%clk 0:02:18]} 15. Be2 {[%clk 0:02:23]}  Ng6 {[%clk 0:02:05]} 16. a5 {[%clk 0:02:22]}  Be6 {[%clk 0:02:00]} 17. Qc2 {[%clk 0:02:20]}  b6 {[%clk 0:01:53]} 18. axb6 {[%clk 0:02:16]}  axb6 {[%clk 0:01:53]} 19. Rfd1 {[%clk 0:02:17]}  h6 {[%clk 0:01:52]} 20. Bf1 {[%clk 0:01:56]}  f6 {[%clk 0:01:28]} 21. c5 {[%clk 0:01:54]}  b5 {[%clk 0:01:13]} 22. Rxa8 {[%clk 0:01:46]}  Rxa8 {[%clk 0:01:12]} 23. Rd6 {[%clk 0:01:47]}  Kf7 {[%clk 0:00:57]} 24. Qd1 {[%clk 0:01:41]}  Ke7 {[%clk 0:00:46]} 25. g3 {[%clk 0:01:20]}  Ra4 {[%clk 0:00:41]} 26. Bd2 {[%clk 0:01:01]}  Ra8 {[%clk 0:00:26]} 27. Bc3 {[%clk 0:01:01]}  Rd8 {[%clk 0:00:22]} 28. Rxd8 {[%clk 0:01:01]}  Qxd8 {[%clk 0:00:23]} 29. Qa1 {[%clk 0:01:02]}  Qd7 {[%clk 0:00:20]} 30. h4 {[%clk 0:01:01]}  Bc4 {[%clk 0:00:15]} 31. Bg2 {[%clk 0:00:57]}  Nf8 {[%clk 0:00:14]} 32. Qa8 {[%clk 0:00:56]}  Ne6 {[%clk 0:00:14]} 33. Kh2 {[%clk 0:00:54]}  h5 {[%clk 0:00:14]} 34. Qh8 {[%clk 0:00:53]}  Qd3 {[%clk 0:00:11]} 35. Ba1 {[%clk 0:00:46]}  Qb1 {[%clk 0:00:10]} 36. Qa8 {[%clk 0:00:45]}  Qa2 {[%clk 0:00:08]} 37. Qxa2 {[%clk 0:00:41]}  Bxa2 {[%clk 0:00:07]} 38. Kg1 {[%clk 0:00:41]}  Bb1 {[%clk 0:00:05]} 39. Kf1 {[%clk 0:00:40]}  Nd4 {[%clk 0:00:04]} 40. Bc3 {[%clk 0:00:39]}  Bd3+ {[%clk 0:00:04]} 41. Ke1 {[%clk 0:00:38]}  Ne6 {[%clk 0:00:03]} 42. Kd2 {[%clk 0:00:38]}  Bc4 {[%clk 0:00:04]} 43. Ke3 {[%clk 0:00:39]}  Nc7 {[%clk 0:00:04]} 44. f4 {[%clk 0:00:39]}  exf4+ {[%clk 0:00:03]} 45. gxf4 {[%clk 0:00:40]}  g6 {[%clk 0:00:03]} 46. Bh3 {[%clk 0:00:37]}  Ne6 {[%clk 0:00:03]} 47. f5 {[%clk 0:00:38]}  gxf5 {[%clk 0:00:02]} 48. Bxf5 {[%clk 0:00:38]}  Ng7 {[%clk 0:00:02]} 49. Bh3 {[%clk 0:00:37]}  Be6 {[%clk 0:00:02]} 50. Bg2 {[%clk 0:00:38]}  Bc4 {[%clk 0:00:02]} 51. Bd2 {[%clk 0:00:34]}  f5 {[%clk 0:00:02]} 52. Bc3 {[%clk 0:00:33]}  fxe4 {[%clk 0:00:02]} 53. Bxg7 {[%clk 0:00:33]}  Bd5 {[%clk 0:00:00]} 54. Bxe4 {[%clk 0:00:33]} 1-0


[Site "https://www.chess.com"]

[Event "Titled Tuesday Blitz August 22 Early 2023"]
[White "Luong Phuong Hanh"]
[Black "Matinian, Nikita"]
[WhiteFideId "12401013"]
[BlackFideId "24129100"]
[WhiteElo "2424"]
[BlackElo "2714"]
[Result "0-1"]
[Round "1"]
[TimeControl "180+1"]
[Date "2023.08.22"]
[WhiteClock "0:01:36"]
[BlackClock "0:01:24"]
[Board "95"]

1. d4 {[%clk 0:02:56]}  Nf6 {[%clk 0:02:59]} 2. Nf3 {[%clk 0:02:56]}  e6 {[%clk 0:02:59]} 3. e3 {[%clk 0:02:56]}  b6 {[%clk 0:02:55]} 4. Bd3 {[%clk 0:02:56]}  Bb7 {[%clk 0:02:55]} 5. O-O {[%clk 0:02:56]}  c5 {[%clk 0:02:53]} 6. c4 {[%clk 0:02:56]}  d5 {[%clk 0:02:39]} 7. Nc3 {[%clk 0:02:53]}  Nbd7 {[%clk 0:02:36]} 8. cxd5 {[%clk 0:02:51]}  exd5 {[%clk 0:02:31]} 9. Ne5 {[%clk 0:02:50]}  Be7 {[%clk 0:02:18]} 10. Nxd7 {[%clk 0:02:38]}  Qxd7 {[%clk 0:02:15]} 11. dxc5 {[%clk 0:02:37]}  bxc5 {[%clk 0:02:15]} 12. Bb5 {[%clk 0:02:26]}  Bc6 {[%clk 0:02:15]} 13. Qa4 {[%clk 0:02:26]}  Bxb5 {[%clk 0:02:15]} 14. Qxb5 {[%clk 0:02:26]}  Qxb5 {[%clk 0:02:12]} 15. Nxb5 {[%clk 0:02:27]}  O-O {[%clk 0:02:13]} 16. b3 {[%clk 0:02:27]}  a5 {[%clk 0:02:10]} 17. Bb2 {[%clk 0:02:27]}  a4 {[%clk 0:02:08]} 18. Rfd1 {[%clk 0:02:19]}  Rfb8 {[%clk 0:01:38]} 19. Nc7 {[%clk 0:02:16]}  Ra7 {[%clk 0:01:38]} 20. Nxd5 {[%clk 0:02:15]}  Nxd5 {[%clk 0:01:38]} 21. Rxd5 {[%clk 0:02:16]}  axb3 {[%clk 0:01:38]} 22. axb3 {[%clk 0:02:12]}  Rxa1+ {[%clk 0:01:38]} 23. Bxa1 {[%clk 0:02:13]}  c4 {[%clk 0:01:39]} 24. Be5 {[%clk 0:02:11]}  Rxb3 {[%clk 0:01:31]} 25. g3 {[%clk 0:02:09]}  f6 {[%clk 0:01:32]} 26. Bd4 {[%clk 0:02:04]}  c3 {[%clk 0:01:25]} 27. Bxc3 {[%clk 0:01:38]}  Rxc3 {[%clk 0:01:25]} 28. Kg2 {[%clk 0:01:36]}  Kf7 {[%clk 0:01:24]} 0-1


[Site "https://www.chess.com"]

[Event "Titled Tuesday Blitz August 22 Early 2023"]
[White "carokannlover213"]
[Black "Buchenau, Frank"]
[BlackFideId "4604350"]
[WhiteElo "2711"]
[BlackElo "2421"]
[Result "1/2-1/2"]
[Round "1"]
[TimeControl "180+1"]
[Date "2023.08.22"]
[WhiteClock "0:00:07"]
[BlackClock "0:00:20"]
[Board "96"]

1. e4 {[%clk 0:03:00]}  e6 {[%clk 0:03:00]} 2. d4 {[%clk 0:02:59]}  d5 {[%clk 0:03:00]} 3. Nd2 {[%clk 0:02:59]}  c5 {[%clk 0:02:59]} 4. Ngf3 {[%clk 0:02:57]}  cxd4 {[%clk 0:02:59]} 5. Nxd4 {[%clk 0:02:58]}  Nc6 {[%clk 0:02:58]} 6. Bb5 {[%clk 0:02:57]}  Bd7 {[%clk 0:02:57]} 7. Nxc6 {[%clk 0:02:57]}  bxc6 {[%clk 0:02:56]} 8. Bd3 {[%clk 0:02:57]}  Bd6 {[%clk 0:02:52]} 9. O-O {[%clk 0:02:57]}  Ne7 {[%clk 0:02:50]} 10. Qe2 {[%clk 0:02:53]}  Ng6 {[%clk 0:02:48]} 11. Nf3 {[%clk 0:02:36]}  Nf4 {[%clk 0:02:48]} 12. Bxf4 {[%clk 0:02:34]}  Bxf4 {[%clk 0:02:49]} 13. e5 {[%clk 0:02:34]}  O-O {[%clk 0:02:45]} 14. g3 {[%clk 0:02:35]}  Bh6 {[%clk 0:02:44]} 15. Kg2 {[%clk 0:02:32]}  Rb8 {[%clk 0:02:42]} 16. c4 {[%clk 0:02:31]}  c5 {[%clk 0:02:41]} 17. b3 {[%clk 0:01:45]}  Bc6 {[%clk 0:02:40]} 18. Kg1 {[%clk 0:01:45]}  a5 {[%clk 0:02:36]} 19. cxd5 {[%clk 0:01:28]}  Qxd5 {[%clk 0:02:31]} 20. Kg2 {[%clk 0:01:18]}  Rfd8 {[%clk 0:01:33]} 21. Bc4 {[%clk 0:01:14]}  Qe4 {[%clk 0:01:27]} 22. Qxe4 {[%clk 0:01:12]}  Bxe4 {[%clk 0:01:26]} 23. Rad1 {[%clk 0:01:11]}  Kf8 {[%clk 0:01:15]} 24. Rfe1 {[%clk 0:00:55]}  Bc6 {[%clk 0:01:10]} 25. Rd6 {[%clk 0:00:34]}  Rxd6 {[%clk 0:01:02]} 26. exd6 {[%clk 0:00:35]}  Ke8 {[%clk 0:00:53]} 27. Re5 {[%clk 0:00:33]}  Kd7 {[%clk 0:00:50]} 28. Rxc5 {[%clk 0:00:33]}  a4 {[%clk 0:00:41]} 29. bxa4 {[%clk 0:00:28]}  Kxd6 {[%clk 0:00:36]} 30. Rxc6+ {[%clk 0:00:12]}  Kxc6 {[%clk 0:00:35]} 31. Ne5+ {[%clk 0:00:13]}  Kc5 {[%clk 0:00:35]} 32. Nd7+ {[%clk 0:00:12]}  Kxc4 {[%clk 0:00:35]} 33. Nxb8 {[%clk 0:00:12]}  Kb4 {[%clk 0:00:34]} 34. Nc6+ {[%clk 0:00:12]}  Kxa4 {[%clk 0:00:33]} 35. Nd8 {[%clk 0:00:13]}  f5 {[%clk 0:00:23]} 36. Nxe6 {[%clk 0:00:12]}  g6 {[%clk 0:00:23]} 37. h4 {[%clk 0:00:09]}  Ka3 {[%clk 0:00:23]} 38. Kf3 {[%clk 0:00:07]}  Kxa2 {[%clk 0:00:23]} 39. Ng5 {[%clk 0:00:04]}  Bxg5 {[%clk 0:00:18]} 40. hxg5 {[%clk 0:00:05]}  Kb3 {[%clk 0:00:18]} 41. Kf4 {[%clk 0:00:05]}  Kc4 {[%clk 0:00:18]} 42. Ke5 {[%clk 0:00:05]}  Kd3 {[%clk 0:00:18]} 43. Kf6 {[%clk 0:00:04]}  Ke2 {[%clk 0:00:18]} 44. Kg7 {[%clk 0:00:03]}  Kxf2 {[%clk 0:00:18]} 45. Kxh7 {[%clk 0:00:03]}  Kxg3 {[%clk 0:00:18]} 46. Kxg6 {[%clk 0:00:04]}  f4 {[%clk 0:00:18]} 47. Kh7 {[%clk 0:00:05]}  f3 {[%clk 0:00:19]} 48. g6 {[%clk 0:00:06]}  f2 {[%clk 0:00:20]} 49. g7 {[%clk 0:00:07]}  f1=Q {[%clk 0:00:20]} 50. g8=Q+ {[%clk 0:00:08]}  Kf2 {[%clk 0:00:20]} 51. Qf7+ {[%clk 0:00:08]}  Kg1 {[%clk 0:00:20]} 52. Qg7+ {[%clk 0:00:08]}  Qg2 {[%clk 0:00:20]} 53. Qd4+ {[%clk 0:00:08]}  Kh1 {[%clk 0:00:21]} 54. Qh4+ {[%clk 0:00:08]}  Qh2 {[%clk 0:00:21]} 55. Qh6 {[%clk 0:00:09]}  Kg2 {[%clk 0:00:20]} 56. Kg7 {[%clk 0:00:08]}  Qxh6+ {[%clk 0:00:20]} 57. Kxh6 {[%clk 0:00:07]} 1/2-1/2


[Site "https://www.chess.com"]

[Event "Titled Tuesday Blitz August 22 Early 2023"]
[White "Morefield, Jason"]
[Black "Rosenberg, Evan S"]
[WhiteFideId "30920825"]
[BlackFideId "2019299"]
[WhiteElo "2708"]
[BlackElo "2421"]
[Result "1-0"]
[Round "1"]
[TimeControl "180+1"]
[Date "2023.08.22"]
[WhiteClock "0:00:05"]
[BlackClock "0:00:00"]
[Board "98"]

1. e4 {[%clk 0:03:00]}  c5 {[%clk 0:02:57]} 2. Nf3 {[%clk 0:03:01]}  g6 {[%clk 0:02:57]} 3. c3 {[%clk 0:03:00]}  d5 {[%clk 0:02:57]} 4. exd5 {[%clk 0:02:59]}  Qxd5 {[%clk 0:02:58]} 5. d4 {[%clk 0:02:59]}  Bg7 {[%clk 0:02:58]} 6. Na3 {[%clk 0:02:58]}  cxd4 {[%clk 0:02:59]} 7. Nb5 {[%clk 0:02:57]}  Na6 {[%clk 0:02:54]} 8. cxd4 {[%clk 0:02:55]}  Nh6 {[%clk 0:02:45]} 9. Nc3 {[%clk 0:02:49]}  Qd6 {[%clk 0:02:34]} 10. Bb5+ {[%clk 0:02:24]}  Bd7 {[%clk 0:02:33]} 11. O-O {[%clk 0:02:23]}  O-O {[%clk 0:02:29]} 12. Bxd7 {[%clk 0:02:15]}  Qxd7 {[%clk 0:02:29]} 13. Ne5 {[%clk 0:02:12]}  Qd8 {[%clk 0:02:00]} 14. Bxh6 {[%clk 0:01:50]}  Bxh6 {[%clk 0:02:00]} 15. Qg4 {[%clk 0:01:49]}  e6 {[%clk 0:01:52]} 16. Rad1 {[%clk 0:01:42]}  Nc7 {[%clk 0:01:51]} 17. Qf3 {[%clk 0:01:18]}  Rb8 {[%clk 0:01:44]} 18. d5 {[%clk 0:01:15]}  Nxd5 {[%clk 0:01:42]} 19. Nxd5 {[%clk 0:01:14]}  exd5 {[%clk 0:01:42]} 20. Rxd5 {[%clk 0:01:15]}  Qb6 {[%clk 0:01:34]} 21. Nd7 {[%clk 0:01:13]}  Qxb2 {[%clk 0:01:35]} 22. Nxb8 {[%clk 0:01:12]}  Rxb8 {[%clk 0:01:35]} 23. a4 {[%clk 0:00:57]}  Rf8 {[%clk 0:01:13]} 24. Rd7 {[%clk 0:00:53]}  b5 {[%clk 0:01:13]} 25. axb5 {[%clk 0:00:49]}  Qxb5 {[%clk 0:01:12]} 26. Rxa7 {[%clk 0:00:49]}  Bg7 {[%clk 0:01:09]} 27. Rb7 {[%clk 0:00:48]}  Qc5 {[%clk 0:01:06]} 28. g3 {[%clk 0:00:47]}  h5 {[%clk 0:01:05]} 29. h4 {[%clk 0:00:47]}  Be5 {[%clk 0:01:01]} 30. Rd1 {[%clk 0:00:45]}  Kg7 {[%clk 0:00:59]} 31. Rdd7 {[%clk 0:00:44]}  Qc4 {[%clk 0:00:52]} 32. Qd5 {[%clk 0:00:41]}  Qxd5 {[%clk 0:00:46]} 33. Rxd5 {[%clk 0:00:42]}  Ba1 {[%clk 0:00:45]} 34. Rdd7 {[%clk 0:00:40]}  Be5 {[%clk 0:00:42]} 35. Kg2 {[%clk 0:00:40]}  Ba1 {[%clk 0:00:43]} 36. Ra7 {[%clk 0:00:35]}  Be5 {[%clk 0:00:42]} 37. Kf3 {[%clk 0:00:35]}  Bb2 {[%clk 0:00:42]} 38. Kf4 {[%clk 0:00:33]}  Bc1+ {[%clk 0:00:39]} 39. Ke5 {[%clk 0:00:29]}  Bb2+ {[%clk 0:00:38]} 40. Kd5 {[%clk 0:00:29]}  Bf6 {[%clk 0:00:30]} 41. Rab7 {[%clk 0:00:24]}  Ba1 {[%clk 0:00:29]} 42. f3 {[%clk 0:00:22]}  Bc3 {[%clk 0:00:29]} 43. Re7 {[%clk 0:00:20]}  Ba1 {[%clk 0:00:28]} 44. g4 {[%clk 0:00:18]}  hxg4 {[%clk 0:00:28]} 45. fxg4 {[%clk 0:00:19]}  Bf6 {[%clk 0:00:28]} 46. Red7 {[%clk 0:00:16]}  Bxh4 {[%clk 0:00:28]} 47. Ke4 {[%clk 0:00:15]}  Bf6 {[%clk 0:00:28]} 48. Kf4 {[%clk 0:00:15]}  Bc3 {[%clk 0:00:25]} 49. Rd3 {[%clk 0:00:14]}  Bf6 {[%clk 0:00:25]} 50. g5 {[%clk 0:00:13]}  Bd8 {[%clk 0:00:20]} 51. Rbd7 {[%clk 0:00:08]}  Ba5 {[%clk 0:00:18]} 52. Rf3 {[%clk 0:00:08]}  Bb4 {[%clk 0:00:13]} 53. Ke4 {[%clk 0:00:07]}  Bc5 {[%clk 0:00:12]} 54. Kd5 {[%clk 0:00:07]}  Bb4 {[%clk 0:00:12]} 55. Kc4 {[%clk 0:00:07]}  Be1 {[%clk 0:00:12]} 56. Rf4 {[%clk 0:00:03]}  Bg3 {[%clk 0:00:11]} 57. Rf3 {[%clk 0:00:02]}  Bh4 {[%clk 0:00:11]} 58. Rd5 {[%clk 0:00:03]}  Rc8+ {[%clk 0:00:10]} 59. Kd3 {[%clk 0:00:03]}  Rf8 {[%clk 0:00:07]} 60. Rf4 {[%clk 0:00:03]}  Be1 {[%clk 0:00:07]} 61. Ke2 {[%clk 0:00:03]}  Bc3 {[%clk 0:00:06]} 62. Rf3 {[%clk 0:00:03]}  Bb2 {[%clk 0:00:05]} 63. Kd1 {[%clk 0:00:04]}  Ba1 {[%clk 0:00:04]} 64. Rb5 {[%clk 0:00:03]}  Bd4 {[%clk 0:00:04]} 65. Rb4 {[%clk 0:00:03]}  Bg1 {[%clk 0:00:04]} 66. Rb7 {[%clk 0:00:03]}  Rd8+ {[%clk 0:00:03]} 67. Ke2 {[%clk 0:00:03]}  Rf8 {[%clk 0:00:04]} 68. Kf1 {[%clk 0:00:04]}  Bd4 {[%clk 0:00:03]} 69. Rd3 {[%clk 0:00:04]}  Be5 {[%clk 0:00:03]} 70. Kg2 {[%clk 0:00:05]}  Bf4 {[%clk 0:00:03]} 71. Rd5 {[%clk 0:00:05]}  Bc1 {[%clk 0:00:02]} 72. Kf3 {[%clk 0:00:05]}  Ba3 {[%clk 0:00:02]} 73. Ra7 {[%clk 0:00:05]}  Bc1 {[%clk 0:00:02]} 74. Rc7 {[%clk 0:00:04]}  Ba3 {[%clk 0:00:02]} 75. Kg4 {[%clk 0:00:04]}  Bb2 {[%clk 0:00:02]} 76. Rb7 {[%clk 0:00:04]}  Ba3 {[%clk 0:00:02]} 77. Ra5 {[%clk 0:00:04]}  Bc1 {[%clk 0:00:02]} 78. Ra2 {[%clk 0:00:04]}  Be3 {[%clk 0:00:02]} 79. Rc2 {[%clk 0:00:04]}  Bd4 {[%clk 0:00:03]} 80. Rc4 {[%clk 0:00:04]}  Ba1 {[%clk 0:00:03]} 81. Re4 {[%clk 0:00:05]}  Bc3 {[%clk 0:00:03]} 82. Ree7 {[%clk 0:00:05]}  Ba1 {[%clk 0:00:02]} 83. Rbd7 {[%clk 0:00:06]}  Bb2 {[%clk 0:00:02]} 84. Re2 {[%clk 0:00:06]}  Bc3 {[%clk 0:00:02]} 85. Rd3 {[%clk 0:00:06]}  Ba1 {[%clk 0:00:02]} 86. Rh2 {[%clk 0:00:07]}  Ra8 {[%clk 0:00:00]} 87. Rdh3 {[%clk 0:00:05]} 1-0


[Site "https://www.chess.com"]

[Event "Titled Tuesday Blitz August 22 Early 2023"]
[White "Namitbir Singh Walia"]
[Black "Di Benedetto, Edoardo"]
[WhiteFideId "35071068"]
[BlackFideId "875740"]
[WhiteElo "2415"]
[BlackElo "2705"]
[Result "0-1"]
[Round "1"]
[TimeControl "180+1"]
[Date "2023.08.22"]
[WhiteClock "0:00:21"]
[BlackClock "0:01:03"]
[Board "101"]

1. e4 {[%clk 0:03:00]}  e6 {[%clk 0:03:00]} 2. d3 {[%clk 0:02:59]}  d5 {[%clk 0:03:01]} 3. Nd2 {[%clk 0:02:59]}  c5 {[%clk 0:03:01]} 4. g3 {[%clk 0:02:59]}  Nf6 {[%clk 0:03:01]} 5. Bg2 {[%clk 0:02:59]}  g6 {[%clk 0:03:02]} 6. f4 {[%clk 0:02:55]}  Bg7 {[%clk 0:02:58]} 7. Ngf3 {[%clk 0:02:54]}  O-O {[%clk 0:02:57]} 8. O-O {[%clk 0:02:54]}  dxe4 {[%clk 0:02:57]} 9. dxe4 {[%clk 0:02:54]}  Nc6 {[%clk 0:02:57]} 10. c3 {[%clk 0:02:54]}  b6 {[%clk 0:02:57]} 11. Qe2 {[%clk 0:02:49]}  Qc7 {[%clk 0:02:55]} 12. a4 {[%clk 0:02:47]}  a5 {[%clk 0:02:55]} 13. Nc4 {[%clk 0:02:33]}  Ba6 {[%clk 0:02:54]} 14. b3 {[%clk 0:02:29]}  Rad8 {[%clk 0:02:53]} 15. Bb2 {[%clk 0:02:23]}  Ne7 {[%clk 0:02:46]} 16. Rfd1 {[%clk 0:02:22]}  Rxd1+ {[%clk 0:02:45]} 17. Rxd1 {[%clk 0:02:23]}  Rd8 {[%clk 0:02:46]} 18. Nfe5 {[%clk 0:02:17]}  Nd7 {[%clk 0:02:37]} 19. Nxd7 {[%clk 0:02:10]}  Rxd7 {[%clk 0:02:36]} 20. Rxd7 {[%clk 0:02:11]}  Qxd7 {[%clk 0:02:37]} 21. Bf1 {[%clk 0:02:00]}  Bxc4 {[%clk 0:02:04]} 22. Qxc4 {[%clk 0:01:57]}  Qd2 {[%clk 0:02:04]} 23. Qe2 {[%clk 0:01:13]}  Bxc3 {[%clk 0:02:03]} 24. Qxd2 {[%clk 0:01:13]}  Bxd2 {[%clk 0:02:02]} 25. Kf2 {[%clk 0:01:12]}  f5 {[%clk 0:01:38]} 26. Bc4 {[%clk 0:01:00]}  Kf7 {[%clk 0:01:38]} 27. Ke2 {[%clk 0:00:58]}  Bb4 {[%clk 0:01:37]} 28. exf5 {[%clk 0:00:55]}  gxf5 {[%clk 0:01:37]} 29. Be5 {[%clk 0:00:55]}  Nd5 {[%clk 0:01:36]} 30. Bxd5 {[%clk 0:00:51]}  exd5 {[%clk 0:01:37]} 31. Bc7 {[%clk 0:00:52]}  Ke6 {[%clk 0:01:34]} 32. Bxb6 {[%clk 0:00:52]}  c4 {[%clk 0:01:35]} 33. bxc4 {[%clk 0:00:48]}  dxc4 {[%clk 0:01:35]} 34. h3 {[%clk 0:00:42]}  h5 {[%clk 0:01:35]} 35. Kf3 {[%clk 0:00:38]}  Kd5 {[%clk 0:01:32]} 36. Ke3 {[%clk 0:00:29]}  Bc5+ {[%clk 0:01:18]} 37. Bxc5 {[%clk 0:00:29]}  Kxc5 {[%clk 0:01:19]} 38. Kd2 {[%clk 0:00:27]}  Kd4 {[%clk 0:01:18]} 39. Kc2 {[%clk 0:00:27]}  c3 {[%clk 0:01:06]} 40. Kc1 {[%clk 0:00:21]}  Kd3 {[%clk 0:01:03]} 0-1


[Site "https://www.chess.com"]

[Event "Titled Tuesday Blitz August 22 Early 2023"]
[White "Farmani Anosheh, Armin"]
[Black "Karthik Rajaa"]
[WhiteFideId "24613240"]
[BlackFideId "25035215"]
[WhiteElo "2413"]
[BlackElo "2701"]
[Result "0-1"]
[Round "1"]
[TimeControl "180+1"]
[Date "2023.08.22"]
[WhiteClock "0:00:00"]
[BlackClock "0:00:17"]
[Board "103"]

1. d4 {[%clk 0:03:00]}  Nf6 {[%clk 0:02:59]} 2. c4 {[%clk 0:03:01]}  g6 {[%clk 0:02:59]} 3. f3 {[%clk 0:03:00]}  Bg7 {[%clk 0:02:56]} 4. e4 {[%clk 0:03:00]}  d6 {[%clk 0:02:56]} 5. Nc3 {[%clk 0:03:00]}  O-O {[%clk 0:02:56]} 6. Nge2 {[%clk 0:02:59]}  Nc6 {[%clk 0:02:53]} 7. Be3 {[%clk 0:02:58]}  a6 {[%clk 0:02:52]} 8. Qd2 {[%clk 0:02:37]}  Na5 {[%clk 0:02:52]} 9. b3 {[%clk 0:02:31]}  b5 {[%clk 0:02:51]} 10. cxb5 {[%clk 0:02:18]}  axb5 {[%clk 0:02:52]} 11. Rc1 {[%clk 0:02:18]}  c6 {[%clk 0:02:32]} 12. Bh6 {[%clk 0:01:32]}  e5 {[%clk 0:02:23]} 13. Bxg7 {[%clk 0:01:32]}  Kxg7 {[%clk 0:02:24]} 14. Nd1 {[%clk 0:01:16]}  exd4 {[%clk 0:02:17]} 15. Nxd4 {[%clk 0:01:15]}  Bb7 {[%clk 0:02:00]} 16. Ne3 {[%clk 0:01:12]}  Kg8 {[%clk 0:01:56]} 17. Bd3 {[%clk 0:01:04]}  Nd7 {[%clk 0:01:54]} 18. O-O {[%clk 0:01:03]}  Qb6 {[%clk 0:01:54]} 19. Be2 {[%clk 0:00:52]}  b4 {[%clk 0:01:17]} 20. Rfd1 {[%clk 0:00:46]}  Rad8 {[%clk 0:01:13]} 21. Kh1 {[%clk 0:00:36]}  Rfe8 {[%clk 0:01:09]} 22. Nc4 {[%clk 0:00:18]}  Nxc4 {[%clk 0:01:08]} 23. Bxc4 {[%clk 0:00:19]}  Ne5 {[%clk 0:01:02]} 24. Qf4 {[%clk 0:00:19]}  Nxc4 {[%clk 0:00:56]} 25. Rxc4 {[%clk 0:00:20]}  d5 {[%clk 0:00:56]} 26. exd5 {[%clk 0:00:15]}  c5 {[%clk 0:00:56]} 27. Nc2 {[%clk 0:00:13]}  Bxd5 {[%clk 0:00:54]} 28. h3 {[%clk 0:00:07]}  Bxc4 {[%clk 0:00:46]} 29. Rxd8 {[%clk 0:00:08]}  Qxd8 {[%clk 0:00:47]} 30. Qxc4 {[%clk 0:00:07]}  Qd1+ {[%clk 0:00:46]} 31. Kh2 {[%clk 0:00:08]}  Re2 {[%clk 0:00:43]} 32. Na1 {[%clk 0:00:02]}  Qxa1 {[%clk 0:00:39]} 33. Qxe2 {[%clk 0:00:01]}  Kf8 {[%clk 0:00:35]} 34. Qf2 {[%clk 0:00:02]}  Qe5+ {[%clk 0:00:34]} 35. f4 {[%clk 0:00:02]}  Qc3 {[%clk 0:00:33]} 36. Qe2 {[%clk 0:00:03]}  Qd4 {[%clk 0:00:33]} 37. Qf3 {[%clk 0:00:03]}  Kg7 {[%clk 0:00:31]} 38. Kg3 {[%clk 0:00:03]}  h5 {[%clk 0:00:30]} 39. Kh2 {[%clk 0:00:03]}  h4 {[%clk 0:00:30]} 40. Qg4 {[%clk 0:00:03]}  Qf2 {[%clk 0:00:30]} 41. Qg5 {[%clk 0:00:03]}  Qxa2 {[%clk 0:00:28]} 42. Qxh4 {[%clk 0:00:03]}  Qxb3 {[%clk 0:00:27]} 43. f5 {[%clk 0:00:04]}  Qe3 {[%clk 0:00:20]} 44. f6+ {[%clk 0:00:03]}  Kg8 {[%clk 0:00:19]} 45. g3 {[%clk 0:00:03]}  Qf2+ {[%clk 0:00:18]} 46. Kh1 {[%clk 0:00:03]}  b3 {[%clk 0:00:18]} 47. Qg5 {[%clk 0:00:00]}  b2 {[%clk 0:00:17]} 0-1


[Site "https://www.chess.com"]